fUSD/lending_fUSD_20251122
["ID","MTS","AMOUNT","RATE_DAILY","PERIOD"]
[394650566,1763812246142,-151.0,0.00017,2]
[394650567,1763812246152,-155.10725,0.00017,2]
[394650568,1763812246162,-152.701468,0.00017,2]
[394650569,1763812246172,-153.66161,0.00017,2]
[394650570,1763812246182,-151.0,0.00017,2]
[394650571,1763812246192,-151.0,0.00017,2]
[394650572,1763812246202,-151.0,0.00017,2]
[394650573,1763812246212,-151.0,0.00017,2]
[394650574,1763812246222,-153.653582,0.00017,2]
[394650575,1763812246231,-151.589119,0.00017,2]
[394650576,1763812246241,-265.96,0.0001705,2]
[394650577,1763812246251,-500.0,0.0001726,2]
[394650578,1763812246260,-500.0,0.0001726,2]
[394650579,1763812246270,-500.0,0.0001726,2]
[394650580,1763812246279,-500.0,0.0001726,2]
[394650581,1763812246289,-500.0,0.0001726,2]
[394650582,1763812246299,-500.0,0.0001726,2]
[394650583,1763812246308,-500.0,0.0001726,2]
[394650584,1763812246317,-500.0,0.0001726,2]
[394650585,1763812246327,-500.0,0.0001726,2]
[394650586,1763812246336,-500.0,0.0001726,2]
[394650587,1763812246346,-500.0,0.0001726,2]
[394650588,1763812246355,-500.0,0.0001726,2]
[394650589,1763812246365,-500.0,0.0001726,2]
[394650590,1763812246375,-153.906874,0.0001726,2]
[394650591,1763812246384,-151.0,0.0001726,2]
[394650592,1763812246394,-151.0,0.0001726,2]
[394650593,1763812246403,-151.0,0.0001726,2]
[394650594,1763812246412,-154.015666,0.0001726,2]
[394650595,1763812246422,-151.0,0.0001726,2]
[394650596,1763812246432,-551.27,0.00017273,2]
[394650597,1763812246441,-500.0,0.00017273,2]
[394650598,1763812246451,-593.63,0.00017273,2]
[394650599,1763812246460,-500.0,0.00017273,2]
[394650600,1763812246469,-242.45,0.00017273,2]
[394650601,1763812246479,-500.0,0.00017273,2]
[394650602,1763812246488,-500.0,0.00017273,2]
[394650603,1763812246498,-615.24800731,0.00017273,2]
[394650604,1763812246507,-500.0,0.00017273,2]
[394650605,1763812246517,-500.0,0.00017273,2]
[394650606,1763812246526,-500.0,0.00017273,2]
[394650607,1763812246536,-500.0,0.00017273,2]
[394650608,1763812246545,-500.0,0.00017273,2]
[394650609,1763812246555,-500.0,0.00017273,2]
[394650610,1763812246564,-500.0,0.00017273,2]
[394650611,1763812246573,-500.0,0.00017273,2]
[394650612,1763812246583,-500.0,0.00017273,2]
[394650613,1763812246593,-500.0,0.00017273,2]
[394650614,1763812246603,-500.0,0.00017273,2]
[394650615,1763812246612,-500.0,0.00017273,2]
[394650616,1763812246623,-1694.37,0.00017273,2]
[394650617,1763812246633,-500.0,0.00017273,2]
[394650618,1763812246642,-500.0,0.00017273,2]
[394650619,1763812246651,-500.68,0.00017273,2]
[394650620,1763812246660,-500.0,0.00017273,2]
[394650621,1763812246670,-500.0,0.00017273,2]
[394650622,1763812246679,-265.98,0.00017324,2]
[394650623,1763812246688,-1820.03461712,0.00017379,2]
[394650624,1763812246697,-2302.50229032,0.00017379,2]
[394650625,1763812246707,-254.0,0.000175,5]
[394650626,1763812246717,-150.0,0.00017521,2]
[394650627,1763812246727,-200.0,0.00017521,2]
[394650628,1763812246738,-500.0,0.00017534,2]
[394650629,1763812246749,-500.0,0.00017534,2]
[394650630,1763812246760,-500.0,0.00017534,2]
[394650631,1763812246771,-500.0,0.00017534,2]
[394650632,1763812246782,-500.0,0.00017534,2]
[394650633,1763812246795,-500.0,0.00017534,2]
[394650634,1763812246805,-500.0,0.00017534,2]
[394650635,1763812246816,-500.0,0.00017534,2]
[394650636,1763812246828,-500.0,0.00017534,2]
[394650637,1763812246838,-500.0,0.00017534,2]
[394650638,1763812246848,-500.0,0.00017534,2]
[394650639,1763812246857,-500.0,0.00017534,2]
[394650640,1763812246868,-305.04,0.00017547,2]
[394650641,1763812246878,-636.72,0.00017547,2]
[394650642,1763812246888,-500.0,0.00017547,2]
[394650643,1763812246898,-500.0,0.00017547,2]
[394650644,1763812246908,-500.0,0.00017547,2]
[394650645,1763812246920,-500.0,0.00017547,2]
[394650646,1763812246932,-500.0,0.00017547,2]
[394650647,1763812246943,-500.0,0.00017547,2]
[394650648,1763812246953,-500.0,0.00017547,2]
[394650649,1763812246963,-500.0,0.00017547,2]
[394650650,1763812246972,-500.0,0.00017547,2]
[394650651,1763812246985,-500.0,0.00017547,2]
[394650652,1763812246994,-500.0,0.00017547,2]
[394650653,1763812247004,-500.0,0.00017547,2]
[394650654,1763812247014,-500.0,0.00017547,2]
[394650655,1763812247024,-173.72798612,0.00017547,2]
[394650656,1763812247036,-1694.37,0.00017547,2]
[394650657,1763812247047,-500.0,0.00017547,2]
[394650658,1763812247057,-500.0,0.00017547,2]
[394650659,1763812247067,-500.68,0.00017547,2]
[394650660,1763812247076,-500.0,0.00017547,2]
[394650661,1763812247086,-518.36967495,0.00017547,2]
[394650662,1763812247095,-420.0,0.0001757,2]
[394650663,1763812247105,-500.0,0.00017808,2]
[394650664,1763812247115,-500.0,0.00017808,2]
[394650665,1763812247124,-500.0,0.00017808,2]
[394650666,1763812247134,-479.88973476,0.00017808,2]
[394650667,1763812247171,-20.11026524,0.00017808,2]
[394650668,1763812247180,-500.0,0.00017808,2]
[394650669,1763812247190,-500.0,0.00017808,2]
[394650670,1763812247200,-500.0,0.00017808,2]
[394650671,1763812247210,-500.0,0.00017808,2]
[394650672,1763812247219,-500.0,0.00017808,2]
[394650673,1763812247228,-500.0,0.00017808,2]
[394650674,1763812247238,-500.0,0.00017808,2]
[394650675,1763812247248,-500.0,0.00017808,2]
[394650676,1763812247258,-500.0,0.00017821,2]
[394650677,1763812247267,-500.0,0.00017821,2]
[394650678,1763812247277,-142.62946928,0.00017821,2]
[394650679,1763812247650,-357.37053072,0.00017821,2]
[394650680,1763812247668,-199.44244985,0.00017821,2]
[394650681,1763812247691,-300.55755015,0.00017821,2]
[394650682,1763812247703,-493.74722718,0.00017821,2]
[394650683,1763812247714,-6.25277282,0.00017821,2]
[394650684,1763812247723,-500.0,0.00017821,2]
[394650685,1763812247732,-500.0,0.00017821,2]
[394650686,1763812247742,-500.0,0.00017821,2]
[394650687,1763812247751,-500.0,0.00017821,2]
[394650688,1763812247760,-500.0,0.00017821,2]
[394650689,1763812247770,-500.0,0.00017821,2]
[394650690,1763812247779,-500.0,0.00017821,2]
[394650691,1763812247788,-500.0,0.00017821,2]
[394650692,1763812247802,-394.07726315,0.00017821,2]
[394650693,1763812247813,-1300.29273685,0.00017821,2]
[394650694,1763812247822,-500.0,0.00017821,2]
[394650695,1763812247831,-500.0,0.00017821,2]
[394650696,1763812247842,-500.68,0.00017821,2]
[394650697,1763812247852,-500.0,0.00017821,2]
[394650698,1763812247861,-2644.9018,0.000179,2]
[394650699,1763812247871,-2227.71443772,0.000179,2]
[394650700,1763812247880,-502.53368594,0.00017973,2]
[394650701,1763812247889,-410.80515512,0.00017973,2]
[394650702,1763812247899,-503.95513271,0.00017973,2]
[394650703,1763812247908,-500.0,0.00017973,2]
[394650704,1763812247918,-159.903552,0.00017973,2]
[394650705,1763812247927,-501.01239348,0.00017973,2]
[394650706,1763812247936,-501.31245106,0.00017973,2]
[394650707,1763812247944,-242.13559859,0.00017973,2]
[394650708,1763812247953,-500.0,0.00017973,2]
[394650709,1763812247963,-500.0,0.00017973,2]
[394650710,1763812247972,-215.85479038,0.00017973,2]
[394650711,1763812247981,-185.75198961,0.00017973,2]
[394650712,1763812247990,-399.75888,0.00017973,2]
[394650713,1763812248000,-501.36590752,0.00017973,2]
[394650714,1763812248010,-500.0,0.00017973,2]
[394650715,1763812248019,-500.0,0.00017973,2]
[394650716,1763812248029,-500.0,0.00017973,2]
[394650717,1763812248038,-500.94845336,0.00017973,2]
[394650718,1763812248047,-500.0,0.00017973,2]
[394650719,1763812248057,-527.75078523,0.00017973,2]
[394650720,1763812248067,-503.37187186,0.00017973,2]
[394650721,1763812248077,-500.0,0.00017973,2]
[394650722,1763812248087,-160.36938766,0.00017973,2]
[394650723,1763812248096,-504.03104451,0.00017973,2]
[394650724,1763812248106,-352.60860859,0.00017973,2]
[394650725,1763812248116,-500.0,0.00017973,2]
[394650726,1763812248125,-500.0,0.00017973,2]
[394650727,1763812248135,-501.51933568,0.00017973,2]
[394650728,1763812248145,-186.95593862,0.0001799,2]
[394650729,1763812248155,-1600.0,0.00017993,2]
[394650730,1763812248164,-1214.22637235,0.00017997,2]
[394650793,1763813432241,-166.66,0.00015447,2]
[394650794,1763813432252,-176.35,0.0001563,2]
[394650795,1763813432262,-166.66,0.00015773,2]
[394650796,1763813432271,-927.766,0.00015938,2]
[394650800,1763813438295,-509.67,0.00015938,2]
[394650801,1763813438305,-347.31,0.00016038,2]
[394650802,1763813438315,-166.66,0.00016098,2]
[394650803,1763813438324,-331.34496428,0.00016137,2]
[394650804,1763813438333,-500.0,0.00016137,2]
[394650805,1763813438343,-500.0,0.00016137,2]
[394650806,1763813438353,-515.01503572,0.00016137,2]
[394650807,1763813438401,-127.68810952,0.00016137,2]
[394650808,1763813438410,-500.0,0.00016137,2]
[394650809,1763813438420,-500.0,0.00016137,2]
[394650810,1763813438429,-500.0,0.00016137,2]
[394650811,1763813438439,-500.0,0.00016137,2]
[394650812,1763813438448,-500.0,0.00016137,2]
[394650813,1763813438458,-1247.93689048,0.00016338,2]
[394650859,1763813440400,-3862.78210952,0.00016338,2]
[394650860,1763813440410,-280.5422,0.00016338,2]
[394650861,1763813440420,-4082.2486,0.00016338,2]
[394650862,1763813440430,-166.66,0.00016423,2]
[394650863,1763813440440,-500.0,0.00016438,2]
[394650864,1763813440449,-500.0,0.00016438,2]
[394650865,1763813440459,-500.0,0.00016438,2]
[394650866,1763813440469,-500.0,0.00016438,2]
[394650867,1763813440478,-500.0,0.00016438,2]
[394650868,1763813440492,-500.0,0.00016438,2]
[394650869,1763813440501,-500.0,0.00016438,2]
[394650870,1763813440510,-500.0,0.00016438,2]
[394650871,1763813440519,-500.0,0.00016438,2]
[394650872,1763813440529,-500.0,0.00016438,2]
[394650873,1763813440538,-49.48173975,0.00016438,2]
[394650874,1763813440549,-450.51826025,0.00016438,2]
[394650875,1763813440559,-500.0,0.00016438,2]
[394650876,1763813440568,-500.0,0.00016438,2]
[394650877,1763813440578,-132.549708,0.00016438,2]
[394650878,1763813440589,-367.450292,0.00016438,2]
[394650879,1763813440598,-500.0,0.00016438,2]
[394650880,1763813440608,-500.0,0.00016438,2]
[394650881,1763813440617,-500.0,0.00016438,2]
[394650882,1763813440627,-500.0,0.00016438,2]
[394650883,1763813440637,-500.0,0.00016438,2]
[394650884,1763813440648,-500.0,0.00016438,2]
[394650885,1763813440657,-500.0,0.00016438,2]
[394650886,1763813440666,-500.0,0.00016438,2]
[394650887,1763813440676,-500.0,0.00016438,2]
[394650888,1763813440686,-177.919708,0.00016438,2]
[394650889,1763813440821,-322.080292,0.00016438,2]
[394650890,1763813440830,-500.0,0.00016438,2]
[394650891,1763813440839,-500.0,0.00016438,2]
[394650892,1763813440849,-500.0,0.00016438,2]
[394650893,1763813440859,-500.0,0.00016438,2]
[394650894,1763813440869,-500.0,0.00016438,2]
[394650895,1763813440878,-500.0,0.00016438,2]
[394650896,1763813440888,-500.0,0.00016438,2]
[394650897,1763813440899,-493.83757875,0.00016438,2]
[394650898,1763813440908,-500.0,0.00016438,2]
[394650899,1763813440917,-285.23307891,0.00016438,2]
[394650900,1763813440927,-169.82476464,0.00016438,2]
[394650901,1763813440938,-330.17523536,0.00016438,2]
[394650902,1763813440947,-500.0,0.00016438,2]
[394650903,1763813440956,-406.72096098,0.00016438,2]
[394650904,1763813440965,-500.0,0.00016438,2]
[394650905,1763813440974,-500.0,0.00016438,2]
[394650906,1763813440983,-500.0,0.00016438,2]
[394650907,1763813440992,-505.11364624,0.00016438,2]
[394650908,1763813441002,-500.0,0.00016438,2]
[394650909,1763813441011,-60.19461531,0.00016438,2]
[394650969,1763813444031,-439.80538469,0.00016438,2]
[394650970,1763813444041,-500.0,0.00016438,2]
[394650971,1763813444050,-500.0,0.00016438,2]
[394650972,1763813444060,-500.0,0.00016438,2]
[394650974,1763813444069,-500.0,0.00016438,2]
[394650976,1763813444079,-548.36800049,0.00016438,2]
[394650977,1763813444088,-500.0,0.00016438,2]
[394650978,1763813444098,-500.0,0.00016438,2]
[394650979,1763813444107,-134.59053482,0.00016438,2]
[394650980,1763813444977,-365.40946518,0.00016438,2]
[394650981,1763813444987,-528.36778117,0.00016438,2]
[394650982,1763813444996,-500.0,0.00016438,2]
[394650983,1763813445004,-500.0,0.00016438,2]
[394650984,1763813445013,-500.0,0.00016438,2]
[394650985,1763813445023,-500.0,0.00016438,2]
[394650986,1763813445032,-500.0,0.00016438,2]
[394650987,1763813445041,-500.0,0.00016438,2]
[394650988,1763813445050,-100.84904801,0.00016438,2]
[394651003,1763813446411,-399.15095199,0.00016438,2]
[394651005,1763813446420,-500.0,0.00016438,2]
[394651006,1763813446429,-500.0,0.00016438,2]
[394651007,1763813446439,-500.0,0.00016438,2]
[394651008,1763813446449,-500.0,0.00016438,2]
[394651009,1763813446458,-279.96922411,0.00016438,2]
[394651010,1763813446781,-220.03077589,0.00016438,2]
[394651011,1763813446791,-283.08459709,0.00016438,2]
[394651012,1763813446805,-216.91540291,0.00016438,2]
[394651013,1763813446815,-204.43459709,0.00016438,2]
[394651014,1763813633786,470.56,0.00013699,2]
[394651022,1763813754666,2776.0,0.000144,5]
[394651038,1763814336208,209.82,8.049e-05,2]
[394651059,1763814631531,-300.0,0.00015837,2]
[394651060,1763814631542,-1200.0,0.00015837,2]
[394651061,1763814631552,-300.0,0.00015837,2]
[394651062,1763814631562,-300.0,0.00015837,2]
[394651063,1763814631574,-675.90264677,0.00015838,2]
[394651064,1763814631585,-3267.63143349,0.00015838,2]
[394651065,1763814631597,-1166.96670514,0.00015838,2]
[394651066,1763814631614,-8206.9,0.00015838,2]
[394651067,1763814631642,-627.03415411,0.00015838,2]
[394651068,1763814631653,-1079.04322481,0.00015838,2]
[394651069,1763814631695,-994.12251902,0.00015838,2]
[394651070,1763814631706,-326.03172292,0.00015838,2]
[394651641,1763814637641,-664.98932389,0.00015838,2]
[394651643,1763814637653,-392.10964753,0.00015838,2]
[394651852,1763814639610,-490.067985,0.00015838,2]
[394651854,1763814639622,-4156.19990002,0.00015838,2]
[394651859,1763814639666,-839.15,0.00015838,2]
[394651866,1763814639722,-682.75,0.00015838,2]
[394651868,1763814639733,-2172.71,0.00015838,2]
[394651870,1763814639744,-3990.95930724,0.00015838,2]
[394652320,1763814645728,-1293.51284163,0.00015838,2]
[394652328,1763814645787,-415.0,0.00015838,2]
[394652330,1763814645799,-9959.66212973,0.00015838,2]
[394652332,1763814645810,-9136.4554587,0.00015838,2]
[394652334,1763814645820,-209.82,0.00016099,2]
[394652336,1763814645830,-200.0,0.00016178,2]
[394652338,1763814645839,-250.0,0.00016178,2]
[394652340,1763814645849,-500.0,0.00016438,2]
[394652342,1763814645859,-446.47155035,0.00016438,2]
[394652344,1763814645870,-494.05663035,0.00016438,2]
[394652347,1763814645880,-500.0,0.00016438,2]
[394652349,1763814645890,-500.0,0.00016438,2]
[394652351,1763814645899,-500.0,0.00016438,2]
[394652353,1763814645909,-500.0,0.00016438,2]
[394652355,1763814645919,-500.0,0.00016438,2]
[394652357,1763814645930,-500.0,0.00016438,2]
[394652359,1763814645940,-500.0,0.00016438,2]
[394652361,1763814645951,-500.0,0.00016438,2]
[394652363,1763814645961,-500.0,0.00016438,2]
[394652365,1763814645971,-955.81,0.00016438,2]
[394652368,1763814645982,-500.0,0.00016438,2]
[394652370,1763814645991,-500.0,0.00016438,2]
[394652372,1763814646001,-500.0,0.00016438,2]
[394652374,1763814646011,-500.0,0.00016438,2]
[394652376,1763814646022,-1000.0,0.00016459,2]
[394652378,1763814646031,-200.0,0.0001665,2]
[394652380,1763814646041,-500.0,0.00016712,2]
[394652382,1763814646051,-500.0,0.00016712,2]
[394652384,1763814646061,-500.0,0.00016712,2]
[394652386,1763814646071,-500.0,0.00016712,2]
[394652388,1763814646080,-500.0,0.00016712,2]
[394652390,1763814646090,-500.0,0.00016712,2]
[394652392,1763814646099,-500.0,0.00016712,2]
[394652395,1763814646108,-500.0,0.00016712,2]
[394652397,1763814646118,-500.0,0.00016712,2]
[394652399,1763814646129,-267.9687718,0.00016712,2]
[394652401,1763814646142,-955.81,0.00016712,2]
[394652403,1763814646152,-216.64763474,0.00016712,2]
[394652405,1763814646166,-283.35236526,0.00016712,2]
[394652407,1763814646176,-500.0,0.00016712,2]
[394652410,1763814646187,-500.0,0.00016712,2]
[394652412,1763814646197,-44.63210706,0.00016712,2]
[394652567,1763814787622,291.681029,7.945e-05,2]
[394652577,1763815156620,448.04,0.00019178,30]
[394652759,1763815831658,-300.0,0.00015837,2]
[394652760,1763815831669,-217.0,0.00015837,2]
[394652761,1763815831680,-500.3249,0.00015981,2]
[394652762,1763815831693,-1600.0,0.00016072,2]
[394652763,1763815831703,-300.0,0.0001608,2]
[394652764,1763815831714,-1200.0,0.0001608,2]
[394652765,1763815831724,-7.80009864,0.0001608,2]
[394652766,1763815831736,-292.19990136,0.0001608,2]
[394652767,1763815831747,-8037.6033918,0.00016081,2]
[394652768,1763815831757,-204.0782139,0.00016081,2]
[394652769,1763815831767,-4677.08349294,0.00016081,2]
[394652770,1763815831781,-1434.23482196,0.00016081,2]
[394652771,1763815831791,-176.35,0.00016105,2]
[394652772,1763815831802,-999.0,0.00016106,3]
[394652773,1763815831812,-3175.19,0.00016144,2]
[394652774,1763815831826,-4279.85051219,0.00016438,2]
[394652775,1763815831837,-894.45,0.00016438,2]
[394652776,1763815831847,-574.18,0.00016748,2]
[394652777,1763815831858,-166.66,0.00016748,2]
[394652778,1763815831868,-3466.95988149,0.00016796,2]
[394652779,1763815831879,-3595.2373971,0.00016851,2]
[394652780,1763815831892,-1000.0,0.00016899,2]
[394652781,1763815831904,-2500.0,0.00016899,2]
[394652782,1763815831915,-1573.27850988,0.00016899,2]
[394652783,1763815831925,-168.02311467,0.000169,2]
[394652784,1763815831936,-3728.2611808,0.00016906,2]
[394652786,1763815831951,-166.66,0.00016959,2]
[394652788,1763815831961,-3866.20684448,0.00016961,2]
[394652790,1763815831971,-250.0,0.00016962,2]
[394652792,1763815831983,-559.61290757,0.00016973,2]
[394652793,1763815831993,-500.0,0.00016973,2]
[394652795,1763815832003,-500.0,0.00016973,2]
[394652797,1763815832013,-158.67491789,0.00016983,2]
[394652800,1763815832027,-292.06215603,0.00016983,2]
[394652802,1763815832037,-500.0,0.00016983,2]
[394652804,1763815832047,-500.0,0.00016983,2]
[394652806,1763815832056,-500.0,0.00016983,2]
[394652808,1763815832067,-500.0,0.00016983,2]
[394652810,1763815832077,-500.0,0.00016983,2]
[394652812,1763815832092,-500.0,0.00016983,2]
[394652814,1763815832111,-500.0,0.00016983,2]
[394652816,1763815832122,-500.0,0.00016983,2]
[394652817,1763815832134,-500.0,0.00016983,2]
[394652818,1763815832145,-500.0,0.00016983,2]
[394652819,1763815832610,-500.0,0.00016983,2]
[394652820,1763815832622,-500.0,0.00016983,2]
[394652821,1763815832632,-500.0,0.00016983,2]
[394652822,1763815832642,-500.0,0.00016983,2]
[394652823,1763815832652,-500.0,0.00016983,2]
[394652824,1763815832662,-500.0,0.00016983,2]
[394652825,1763815832672,-500.0,0.00016983,2]
[394652826,1763815832681,-206.92109273,0.00016983,2]
[394652827,1763815832691,-500.0,0.00016983,2]
[394652828,1763815832700,-500.0,0.00016983,2]
[394652829,1763815832709,-500.0,0.00016983,2]
[394652830,1763815832718,-500.0,0.00016983,2]
[394652831,1763815832728,-500.0,0.00016983,2]
[394652832,1763815832737,-500.0,0.00016983,2]
[394652833,1763815832747,-500.0,0.00016983,2]
[394652834,1763815832756,-500.0,0.00016983,2]
[394652835,1763815832765,-500.0,0.00016983,2]
[394652836,1763815832774,-500.0,0.00016983,2]
[394652837,1763815832784,-500.0,0.00016983,2]
[394652838,1763815832794,-500.0,0.00016983,2]
[394652839,1763815832803,-500.0,0.00016983,2]
[394652840,1763815832812,-500.0,0.00016983,2]
[394652841,1763815832821,-500.0,0.00016983,2]
[394652842,1763815832831,-500.0,0.00016983,2]
[394652843,1763815832840,-500.0,0.00016983,2]
[394652844,1763815832850,-500.0,0.00016983,2]
[394652845,1763815832859,-500.0,0.00016983,2]
[394652846,1763815832868,-200.0,0.00016983,2]
[394652847,1763815832877,-500.0,0.00016983,2]
[394652848,1763815832886,-500.0,0.00016983,2]
[394652849,1763815832897,-500.0,0.00016983,2]
[394652850,1763815832912,-500.0,0.00016983,2]
[394652851,1763815832922,-500.0,0.00016983,2]
[394652852,1763815832931,-500.0,0.00016983,2]
[394652853,1763815832940,-500.0,0.00016983,2]
[394652854,1763815832951,-414.7258274,0.00016983,2]
[394652855,1763815832960,-500.0,0.00016983,2]
[394652856,1763815832969,-500.0,0.00016983,2]
[394652857,1763815832979,-500.0,0.00016983,2]
[394652858,1763815832990,-500.0,0.00016983,2]
[394652859,1763815832999,-500.0,0.00016983,2]
[394652860,1763815833008,-500.0,0.00016983,2]
[394652861,1763815833017,-500.0,0.00016983,2]
[394652862,1763815833027,-409.11896058,0.00016986,2]
[394652863,1763815833216,-950.26546194,0.00016986,2]
[394652867,1763815837925,-30536.99884714,0.00016986,2]
[394652868,1763815837938,-5739.18585998,0.00016986,2]
[394652869,1763815837952,-17985.15087036,0.00016986,2]
[394652870,1763815837961,-500.0,0.0001699,2]
[394652871,1763815837971,-290.63096395,0.0001699,2]
[394652873,1763815837982,-250.0,0.0001699,2]
[394652875,1763815837991,-500.0,0.0001699,2]
[394652876,1763815838000,-269.52019072,0.0001699,2]
[394652877,1763815838010,-267.43291878,0.0001699,2]
[394652878,1763815838019,-324.57463654,0.0001699,2]
[394652879,1763815838032,-500.0,0.00016998,2]
[394652881,1763815838042,-500.0,0.00016998,2]
[394652883,1763815838052,-500.0,0.00016998,2]
[394652885,1763815838062,-500.0,0.00016998,2]
[394652887,1763815838071,-500.0,0.00016998,2]
[394652888,1763815838080,-500.0,0.00016998,2]
[394652890,1763815838090,-500.0,0.00016998,2]
[394652892,1763815838100,-500.0,0.00016998,2]
[394652893,1763815838110,-514.53,0.00016998,2]
[394652894,1763815838119,-500.0,0.00016998,2]
[394652895,1763815838129,-500.0,0.00016998,2]
[394652896,1763815838139,-500.0,0.00016998,2]
[394652897,1763815838148,-500.0,0.00016998,2]
[394652898,1763815838158,-500.0,0.00016998,2]
[394652899,1763815838167,-500.0,0.00016998,2]
[394652900,1763815838176,-155.30161965,0.00016999,2]
[394652902,1763815839662,-344.69838035,0.00016999,2]
[394652903,1763815839672,-500.0,0.00016999,2]
[394652904,1763815839681,-339.12007461,0.00016999,2]
[394652905,1763815839690,-495.27409412,0.00016999,2]
[394652906,1763815839768,-4.72590588,0.00016999,2]
[394652907,1763815839778,-876.16,0.00016999,2]
[394652908,1763815839787,-500.0,0.00016999,2]
[394652909,1763815839796,-500.0,0.00016999,2]
[394652910,1763815839806,-500.0,0.00016999,2]
[394652911,1763815839815,-500.0,0.00016999,2]
[394652912,1763815839824,-500.0,0.00016999,2]
[394652913,1763815839834,-500.0,0.00016999,2]
[394652914,1763815839843,-500.0,0.00016999,2]
[394652915,1763815839852,-500.0,0.00016999,2]
[394652916,1763815839862,-500.0,0.00016999,2]
[394652917,1763815839871,-391.81,0.00016999,2]
[394652918,1763815839881,-500.0,0.00016999,2]
[394652919,1763815839890,-500.0,0.00016999,2]
[394652920,1763815839901,-500.0,0.00016999,2]
[394652921,1763815839913,-500.0,0.00016999,2]
[394652922,1763815839923,-500.0,0.00016999,2]
[394652923,1763815839932,-500.0,0.00016999,2]
[394652924,1763815839943,-500.0,0.00016999,2]
[394652925,1763815839956,-629.13,0.00016999,2]
[394652926,1763815839965,-500.0,0.00016999,2]
[394652927,1763815839975,-500.0,0.00016999,2]
[394652928,1763815839987,-500.0,0.00016999,2]
[394652929,1763815839996,-500.0,0.00016999,2]
[394652930,1763815840006,-500.0,0.00016999,2]
[394652931,1763815840015,-413.82938341,0.00016999,2]
[394652932,1763815840024,-507.56618656,0.00016999,2]
[394652933,1763815840034,-500.0,0.00016999,2]
[394652934,1763815840043,-409.32026059,0.00016999,2]
[394652935,1763815840052,-500.0,0.00016999,2]
[394652936,1763815840062,-501.75165023,0.00016999,2]
[394652937,1763815840071,-508.70934206,0.00016999,2]
[394652938,1763815840082,-500.0,0.00016999,2]
[394652939,1763815840091,-502.00969773,0.00016999,2]
[394652940,1763815840102,-500.0,0.00016999,2]
[394652941,1763815840111,-500.0,0.00016999,2]
[394652942,1763815840125,-514.53433667,0.00016999,2]
[394652943,1763815840134,-507.87712573,0.00016999,2]
[394652944,1763815840143,-503.05487267,0.00016999,2]
[394652945,1763815840152,-500.0,0.00016999,2]
[394652946,1763815840161,-644.51371965,0.00016999,2]
[394652947,1763815840171,-500.0,0.00016999,2]
[394652948,1763815840180,-500.0,0.00016999,2]
[394652949,1763815840189,-500.0,0.00016999,2]
[394652950,1763815840201,-505.85079516,0.00016999,2]
[394652951,1763815840210,-500.0,0.00016999,2]
[394652952,1763815840219,-500.0,0.00016999,2]
[394652953,1763815840228,-535.34779641,0.00016999,2]
[394652954,1763815840238,-626.17190731,0.00016999,2]
[394652955,1763815840247,-527.35429383,0.00016999,2]
[394652956,1763815840257,-524.75647602,0.00016999,2]
[394652957,1763815840268,-580.15929198,0.00016999,2]